{"text_format":"3","workbook":"xlsx","n_sheets":2,"sheets":["ROZPOCZĘCIE","GRAFIK ROCZNY"],"not_rendered":{"defined_names":2},"read":"whole","date_system":"1900"}

{"sheet":"ROZPOCZĘCIE","index":0,"n_rows":8,"n_cols":2,"rows_kept":8}
[null,"INFORMACJE O TYM SZABLONIE"]
[null,"Ta Pracownik karta godzin umożliwia śledzenie godzin w trybie dziennym, tygodniowym, miesięcznym i rocznym."]
[null,"Podaj informacje podstawowe, takie jak imię i nazwisko pracownika, imię i nazwisko kierownika, adres e-mail i numer telefonu. "]
[null,"Dodaj godziny do tabel poszczególnych miesięcy. Rejestruj godziny zwykłe i nadgodziny w osobnych kolumnach poszczególnych dni każdego tygodnia. "]
[null,"Sumy godzin pracy, zwykłych i nadgodzin są obliczane automatycznie. "]
[null,"Uwagi:"]
[null,"W kolumnie A w arkuszu GRAFIK ROCZNY podano dodatkowe instrukcje. Ten tekst celowo został ukryty. Aby usunąć tekst, zaznacz kolumnę A, a następnie naciśnij klawisz DELETE. Aby odkryć tekst, zaznacz kolumnę A, a następnie zmień kolor czcionki. "]
[null,"Aby uzyskać więcej informacji o tabelach, w tabeli naciśnij klawisz SHIFT, a następnie F10, wybierz pozycję TABELA, a następnie TEKST ALTERNATYWNY."]

{"sheet":"GRAFIK ROCZNY","index":1,"n_rows":132,"n_cols":15,"rows_kept":132,"merged":[[0,1,0,2],[0,4,0,14],[10,6,10,7],[21,6,21,7],[32,6,32,7],[33,4,33,14],[43,6,43,7],[54,6,54,7],[65,6,65,7],[66,4,66,14],[76,6,76,7],[87,6,87,7],[98,6,98,7],[99,4,99,14],[109,6,109,7],[120,6,120,7],[131,6,131,7]]}
["W tym arkuszu utwórz dzienny, tygodniowy, miesięczny lub roczny grafik pracownika. \nW komórkach w tej kolumnie podano przydatne instrukcje na temat korzystania z tego skoroszytu. Naciśnij strzałkę w dół, aby rozpocząć pracę.\nW komórce po prawej stronie znajduje się tytuł tego arkusza, a w komórce E1 — nagłówek kwartału obejmującego styczeń, luty i marzec.","PRACOWNIK \nKARTA GODZIN",null,null,"Styczeń, luty, marzec      Pracownik karta godzin: dzienna, tygodniowa, miesięczna, roczna"]
["W komórce C2 wprowadź imię i nazwisko pracownika, a w tabeli Styczeń zaczynającej się w komórce E2 — godziny zwykłe i nadgodziny.","Imię i nazwisko pracownika:",null,null,"Styczeń","Tydzień 1","Nadgodziny","Tydzień 2","Nadgodziny  ","Tydzień 3","Nadgodziny   ","Tydzień 4","Nadgodziny    ","Tydzień 5","Nadgodziny     "]
["W komórce C3 wprowadź imię i nazwisko kierownik.","Kierownik:",null,null,"Poniedziałek",{"v":8,"d":"8.0"}]
["W komórce C4 wprowadź adres e-mail.","Adres e-mail:",null,null,"Wtorek",{"v":8,"d":"8.0"},{"v":2,"d":"2.0"}]
["W komórce C5 wprowadź numer telefon. Dalsze instrukcje znajdują się w komórce A9.","Telefon:",null,null,"Środa"]
[{"$nulls":4},"Czwartek"]
[{"$nulls":4},"Piątek"]
[{"$nulls":4},"Sobota"]
["W komórce C9 jest automatycznie obliczana roczna suma godzin zwykłych.","Zwykłe godziny pracy:",{"$f":"Godziny_zwykłe","v":31},null,"Niedziela"]
["W komórce C10 jest automatycznie obliczana roczna suma nadgodzin.","Nadgodziny:",{"$f":"Nadgodziny","v":4},null,"Suma godzin w tygodniu",{"$f":"SUM(F3:F9)","v":{"v":16,"d":"16.0"}},{"v":2,"d":"2.0"},{"v":0,"d":"0.0"},{"v":0,"d":"0.0"},{"v":0,"d":"0.0"},{"v":0,"d":"0.0"},{"v":0,"d":"0.0"},{"v":0,"d":"0.0"},{"v":0,"d":"0.0"},{"v":0,"d":"0.0"}]
["W komórce C11 jest automatycznie obliczana roczna suma wszystkich godzin. W komórce F11 jest automatycznie obliczana suma godzin zwykłych w styczniu, a w komórce I11 — suma nadgodzin w styczniu. Dalsze instrukcje znajdują się w komórce A13.","Suma",{"$f":"Godziny_zwykłe+Nadgodziny","v":35},null,{"$f":"TEXT(DATEVALUE(Styczeń[[#Headers],[Styczeń]]&\"  \"&YEAR(TODAY())),\"mmm.\")&\" suma: Zwykłe godziny pracy\"","v":"sty. suma: Zwykłe godziny pracy"},{"$f":"SUM(Styczeń[Tydzień 1],Styczeń[Tydzień 2],Styczeń[Tydzień 3],Styczeń[Tydzień 4],Styczeń[Tydzień 5])","v":{"v":16,"d":"16.0"}},{"$f":"TEXT(DATEVALUE(Styczeń[[#Headers],[Styczeń]]&\"  \"&YEAR(TODAY())),\"mmm.\")&\" suma: Nadgodziny\"","v":"sty. suma: Nadgodziny"},null,{"$f":"SUM(Styczeń[Nadgodziny],Styczeń[[Nadgodziny  ]],Styczeń[[Nadgodziny   ]],Styczeń[[Nadgodziny    ]],Styczeń[[Nadgodziny     ]])","v":{"v":2,"d":"2.0"}}]
[]
["W tabeli Luty zaczynającej się w komórce E13 wprowadź godziny zwykłe i nadgodziny. Dalsze instrukcje znajdują się w komórce A22.",{"$nulls":3},"Luty","Tydzień 1","Nadgodziny","Tydzień 2","Nadgodziny  ","Tydzień 3","Nadgodziny   ","Tydzień 4","Nadgodziny    ","Tydzień 5","Nadgodziny     "]
[{"$nulls":4},"Poniedziałek",{"v":8,"d":"8.0"}]
[{"$nulls":4},"Wtorek",{"v":7,"d":"7.0"},{"v":2,"d":"2.0"}]
[{"$nulls":4},"Środa"]
[{"$nulls":4},"Czwartek"]
[{"$nulls":4},"Piątek"]
[{"$nulls":4},"Sobota"]
[{"$nulls":4},"Niedziela"]
[{"$nulls":4},"Suma godzin w tygodniu",{"$f":"SUM(F14:F20)","v":{"v":15,"d":"15.0"}},{"v":2,"d":"2.0"},{"v":0,"d":"0.0"},{"v":0,"d":"0.0"},{"v":0,"d":"0.0"},{"v":0,"d":"0.0"},{"v":0,"d":"0.0"},{"v":0,"d":"0.0"},{"v":0,"d":"0.0"},{"v":0,"d":"0.0"}]
["W komórce F22 jest automatycznie obliczana suma godzin zwykłych w lutym, a w komórce I22 — suma nadgodzin w lutym. Dalsze instrukcje znajdują się w komórce A24.",{"$nulls":3},{"$f":"TEXT(DATEVALUE(Luty[[#Headers],[Luty]]&\"  \"&YEAR(TODAY())),\"mmm.\")&\" suma: Zwykłe godziny pracy\"","v":"lut. suma: Zwykłe godziny pracy"},{"$f":"SUM(Luty[Tydzień 1],Luty[Tydzień 2],Luty[Tydzień 3],Luty[Tydzień 4],Luty[Tydzień 5])","v":{"v":15,"d":"15.0"}},{"$f":"TEXT(DATEVALUE(Luty[[#Headers],[Luty]]&\" \"&YEAR(TODAY())),\"mmm.\")&\" suma: Nadgodziny\"","v":"lut. suma: Nadgodziny"},null,{"$f":"SUM(Luty[Nadgodziny],Luty[[Nadgodziny  ]],Luty[[Nadgodziny   ]],Luty[[Nadgodziny    ]],Luty[[Nadgodziny     ]])","v":{"v":2,"d":"2.0"}}]
[]
["W tabeli Marzec zaczynającej się w komórce E24 wprowadź godziny zwykłe i nadgodziny. Dalsze instrukcje znajdują się w komórce A33.",{"$nulls":3},"Marzec","Tydzień 1","Nadgodziny","Tydzień 2","Nadgodziny ","Tydzień 3","Nadgodziny  ","Tydzień 4","Nadgodziny    ","Tydzień 5","Nadgodziny     "]
[{"$nulls":4},"Poniedziałek"]
[{"$nulls":4},"Wtorek"]
[{"$nulls":4},"Środa"]
[{"$nulls":4},"Czwartek"]
[{"$nulls":4},"Piątek"]
[{"$nulls":4},"Sobota"]
[{"$nulls":4},"Niedziela"]
[{"$nulls":4},"Suma godzin w tygodniu",{"$f":"SUM(F25:F31)","v":{"v":0,"d":"0.0"}},{"v":0,"d":"0.0"},{"v":0,"d":"0.0"},{"v":0,"d":"0.0"},{"v":0,"d":"0.0"},{"v":0,"d":"0.0"},{"v":0,"d":"0.0"},{"v":0,"d":"0.0"},{"v":0,"d":"0.0"},{"v":0,"d":"0.0"}]
["W komórce F33 jest automatycznie obliczana suma godzin zwykłych w marcu, a w komórce I33 — suma nadgodzin w marcu.",{"$nulls":3},{"$f":"TEXT(DATEVALUE(Marzec[[#Headers],[Marzec]]&\" \"&YEAR(TODAY())),\"mmm.\")&\" suma: Zwykłe godziny pracy\"","v":"mar. suma: Zwykłe godziny pracy"},{"$f":"SUM(Marzec[Tydzień 1],Marzec[Tydzień 2],Marzec[Tydzień 3],Marzec[Tydzień 4],Marzec[Tydzień 5])","v":{"v":0,"d":"0.0"}},{"$f":"TEXT(DATEVALUE(Marzec[[#Headers],[Marzec]]&\" \"&YEAR(TODAY())),\"mmm.\")&\" suma: Nadgodziny\"","v":"mar. suma: Nadgodziny"},null,{"$f":"SUM(Marzec[Nadgodziny],Marzec[[Nadgodziny ]],Marzec[[Nadgodziny  ]],Marzec[[Nadgodziny    ]],Marzec[[Nadgodziny     ]])","v":{"v":0,"d":"0.0"}}]
["W komórce E34 znajduje się nagłówek drugiego kwartału obejmującego kwiecień, maj i czerwiec. ",{"$nulls":3},"Kwiecień, maj, czerwiec      Pracownik karta godzin: dzienna, tygodniowa, miesięczna, roczna"]
["W tabeli Kwiecień zaczynającej się w komórce E35 wprowadź godziny zwykłe i nadgodziny. Dalsze instrukcje znajdują się w komórce A44.",{"$nulls":3},"Kwiecień","Tydzień 1","Nadgodziny","Tydzień 2","Nadgodziny  ","Tydzień 3","Nadgodziny   ","Tydzień 4","Nadgodziny    ","Tydzień 5","Nadgodziny     "]
[{"$nulls":4},"Poniedziałek"]
[{"$nulls":4},"Wtorek"]
[{"$nulls":4},"Środa"]
[{"$nulls":4},"Czwartek"]
[{"$nulls":4},"Piątek"]
[{"$nulls":4},"Sobota"]
[{"$nulls":4},"Niedziela"]
[{"$nulls":4},"Suma godzin w tygodniu",{"$f":"SUM(F36:F42)","v":{"v":0,"d":"0.0"}},{"v":0,"d":"0.0"},{"v":0,"d":"0.0"},{"v":0,"d":"0.0"},{"v":0,"d":"0.0"},{"v":0,"d":"0.0"},{"v":0,"d":"0.0"},{"v":0,"d":"0.0"},{"v":0,"d":"0.0"},{"v":0,"d":"0.0"}]
["W komórce F44 jest automatycznie obliczana suma godzin zwykłych w kwietniu, a w komórce I44 — suma nadgodzin w kwietniu. Dalsze instrukcje znajdują się w komórce A46.",{"$nulls":3},{"$f":"TEXT(DATEVALUE(Kwiecień[[#Headers],[Kwiecień]]&\" \"&YEAR(TODAY())),\"mmm.\")&\" suma: Zwykłe godziny pracy\"","v":"kwi. suma: Zwykłe godziny pracy"},{"$f":"SUM(Kwiecień[Tydzień 1],Kwiecień[Tydzień 2],Kwiecień[Tydzień 3],Kwiecień[Tydzień 4],Kwiecień[Tydzień 5])","v":{"v":0,"d":"0.0"}},{"$f":"TEXT(DATEVALUE(Kwiecień[[#Headers],[Kwiecień]]&\" \"&YEAR(TODAY())),\"mmm.\")&\" suma: Nadgodziny\"","v":"kwi. suma: Nadgodziny"},null,{"$f":"SUM(Kwiecień[Nadgodziny],Kwiecień[[Nadgodziny  ]],Kwiecień[[Nadgodziny   ]],Kwiecień[[Nadgodziny    ]],Kwiecień[[Nadgodziny     ]])","v":{"v":0,"d":"0.0"}}]
[]
["W tabeli Maj zaczynającej się w komórce E46 wprowadź godziny zwykłe i nadgodziny. Dalsze instrukcje znajdują się w komórce A55.",{"$nulls":3},"Maj","Tydzień 1","Nadgodziny","Tydzień 2","Nadgodziny  ","Tydzień 3","Nadgodziny   ","Tydzień 4","Nadgodziny    ","Tydzień 5","Nadgodziny     "]
[{"$nulls":4},"Poniedziałek"]
[{"$nulls":4},"Wtorek"]
[{"$nulls":4},"Środa"]
[{"$nulls":4},"Czwartek"]
[{"$nulls":4},"Piątek"]
[{"$nulls":4},"Sobota"]
[{"$nulls":4},"Niedziela"]
[{"$nulls":4},"Suma godzin w tygodniu",{"$f":"SUM(F47:F53)","v":{"v":0,"d":"0.0"}},{"v":0,"d":"0.0"},{"v":0,"d":"0.0"},{"v":0,"d":"0.0"},{"v":0,"d":"0.0"},{"v":0,"d":"0.0"},{"v":0,"d":"0.0"},{"v":0,"d":"0.0"},{"v":0,"d":"0.0"},{"v":0,"d":"0.0"}]
["W komórce F55 jest automatycznie obliczana suma godzin zwykłych w maju, a w komórce I55 — suma nadgodzin w maju. Dalsze instrukcje znajdują się w komórce A57.",{"$nulls":3},{"$f":"TEXT(DATEVALUE(Maj[[#Headers],[Maj]]&\" \"&YEAR(TODAY())),\"mmm.\")&\" suma: Zwykłe godziny pracy\"","v":"maj. suma: Zwykłe godziny pracy"},{"$f":"SUM(Maj[Tydzień 1],Maj[Tydzień 2],Maj[Tydzień 3],Maj[Tydzień 4],Maj[Tydzień 5])","v":{"v":0,"d":"0.0"}},{"$f":"TEXT(DATEVALUE(Maj[[#Headers],[Maj]]&\" \"&YEAR(TODAY())),\"mmm.\")&\" suma: Nadgodziny\"","v":"maj. suma: Nadgodziny"},null,{"$f":"SUM(Maj[Nadgodziny],Maj[[Nadgodziny  ]],Maj[[Nadgodziny   ]],Maj[[Nadgodziny    ]],Maj[[Nadgodziny     ]])","v":{"v":0,"d":"0.0"}}]
[]
["W tabeli Czerwiec zaczynającej się w komórce E57 wprowadź godziny zwykłe i nadgodziny. Dalsze instrukcje znajdują się w komórce A66.",{"$nulls":3},"Czerwiec","Tydzień 1","Nadgodziny","Tydzień 2","Nadgodziny  ","Tydzień 3","Nadgodziny   ","Tydzień 4","Nadgodziny    ","Tydzień 5","Nadgodziny     "]
[{"$nulls":4},"Poniedziałek"]
[{"$nulls":4},"Wtorek"]
[{"$nulls":4},"Środa"]
[{"$nulls":4},"Czwartek"]
[{"$nulls":4},"Piątek"]
[{"$nulls":4},"Sobota"]
[{"$nulls":4},"Niedziela"]
[{"$nulls":4},"Suma godzin w tygodniu",{"$f":"SUM(F58:F64)","v":{"v":0,"d":"0.0"}},{"v":0,"d":"0.0"},{"v":0,"d":"0.0"},{"v":0,"d":"0.0"},{"v":0,"d":"0.0"},{"v":0,"d":"0.0"},{"v":0,"d":"0.0"},{"v":0,"d":"0.0"},{"v":0,"d":"0.0"},{"v":0,"d":"0.0"}]
["W komórce F66 jest automatycznie obliczana suma godzin zwykłych w czerwcu, a w komórce I66 — suma nadgodzin w czerwcu.",{"$nulls":3},{"$f":"TEXT(DATEVALUE(Czerwiec[[#Headers],[Czerwiec]]&\" \"&YEAR(TODAY())),\"mmm.\")&\" suma: Zwykłe godziny pracy\"","v":"cze. suma: Zwykłe godziny pracy"},{"$f":"SUM(Czerwiec[Tydzień 1],Czerwiec[Tydzień 2],Czerwiec[Tydzień 3],Czerwiec[Tydzień 4],Czerwiec[Tydzień 5])","v":{"v":0,"d":"0.0"}},{"$f":"TEXT(DATEVALUE(Czerwiec[[#Headers],[Czerwiec]]&\" \"&YEAR(TODAY())),\"mmm.\")&\" suma: Nadgodziny\"","v":"cze. suma: Nadgodziny"},null,{"$f":"SUM(Czerwiec[Nadgodziny],Czerwiec[[Nadgodziny  ]],Czerwiec[[Nadgodziny   ]],Czerwiec[[Nadgodziny    ]],Czerwiec[[Nadgodziny     ]])","v":{"v":0,"d":"0.0"}}]
["W komórce E67 znajduje się nagłówek trzeciego kwartału obejmującego lipiec, sierpień i wrzesień. ",{"$nulls":3},"Lipiec, sierpień, wrzesień      Pracownik karta godzin: dzienna, tygodniowa, miesięczna, roczna"]
["W tabeli Lipiec zaczynającej się w komórce E68 wprowadź godziny zwykłe i nadgodziny. Dalsze instrukcje znajdują się w komórce A77.",{"$nulls":3},"Lipiec","Tydzień 1","Nadgodziny","Tydzień 2","Nadgodziny ","Tydzień 3","Nadgodziny  ","Tydzień 4","Nadgodziny   ","Tydzień 5","Nadgodziny     "]
[{"$nulls":4},"Poniedziałek"]
[{"$nulls":4},"Wtorek"]
[{"$nulls":4},"Środa"]
[{"$nulls":4},"Czwartek"]
[{"$nulls":4},"Piątek"]
[{"$nulls":4},"Sobota"]
[{"$nulls":4},"Niedziela"]
[{"$nulls":4},"Suma godzin w tygodniu",{"$f":"SUM(F69:F75)","v":{"v":0,"d":"0.0"}},{"v":0,"d":"0.0"},{"v":0,"d":"0.0"},{"v":0,"d":"0.0"},{"v":0,"d":"0.0"},{"v":0,"d":"0.0"},{"v":0,"d":"0.0"},{"v":0,"d":"0.0"},{"v":0,"d":"0.0"},{"v":0,"d":"0.0"}]
["W komórce F77 jest automatycznie obliczana suma godzin zwykłych w lipcu, a w komórce I77 — suma nadgodzin w lipcu. Dalsze instrukcje znajdują się w komórce A79.",{"$nulls":3},{"$f":"TEXT(DATEVALUE(Lipiec[[#Headers],[Lipiec]]&\" \"&YEAR(TODAY())),\"mmm.\")&\" suma: Zwykłe godziny pracy\"","v":"lip. suma: Zwykłe godziny pracy"},{"$f":"SUM(Lipiec[Tydzień 1],Lipiec[Tydzień 2],Lipiec[Tydzień 3],Lipiec[Tydzień 4],Lipiec[Tydzień 5])","v":{"v":0,"d":"0.0"}},{"$f":"TEXT(DATEVALUE(Lipiec[[#Headers],[Lipiec]]&\" \"&YEAR(TODAY())),\"mmm.\")&\" suma: Nadgodziny\"","v":"lip. suma: Nadgodziny"},null,{"$f":"SUM(Lipiec[Nadgodziny],Lipiec[[Nadgodziny ]],Lipiec[[Nadgodziny  ]],Lipiec[[Nadgodziny   ]],Lipiec[[Nadgodziny     ]])","v":{"v":0,"d":"0.0"}}]
[]
["W tabeli Sierpień zaczynającej się w komórce E79 wprowadź godziny zwykłe i nadgodziny. Dalsze instrukcje znajdują się w komórce A88.",{"$nulls":3},"Sierpień","Tydzień 1","Nadgodziny","Tydzień 2","Nadgodziny ","Tydzień 3","Nadgodziny   ","Tydzień 4","Nadgodziny  ","Tydzień 5","Nadgodziny    "]
[{"$nulls":4},"Poniedziałek"]
[{"$nulls":4},"Wtorek"]
[{"$nulls":4},"Środa"]
[{"$nulls":4},"Czwartek"]
[{"$nulls":4},"Piątek"]
[{"$nulls":4},"Sobota"]
[{"$nulls":4},"Niedziela"]
[{"$nulls":4},"Suma godzin w tygodniu",{"$f":"SUBTOTAL(109,Sierpień[Tydzień 1])","v":{"v":0,"d":"0.0"}},{"$f":"SUBTOTAL(109,Sierpień[Nadgodziny])","v":{"v":0,"d":"0.0"}},{"$f":"SUBTOTAL(109,Sierpień[Tydzień 2])","v":{"v":0,"d":"0.0"}},{"$f":"SUBTOTAL(109,Sierpień[[Nadgodziny ]])","v":{"v":0,"d":"0.0"}},{"$f":"SUBTOTAL(109,Sierpień[Tydzień 3])","v":{"v":0,"d":"0.0"}},{"$f":"SUBTOTAL(109,Sierpień[[Nadgodziny   ]])","v":{"v":0,"d":"0.0"}},{"$f":"SUBTOTAL(109,Sierpień[Tydzień 4])","v":{"v":0,"d":"0.0"}},{"$f":"SUBTOTAL(109,Sierpień[[Nadgodziny  ]])","v":{"v":0,"d":"0.0"}},{"$f":"SUBTOTAL(109,Sierpień[Tydzień 5])","v":{"v":0,"d":"0.0"}},{"$f":"SUBTOTAL(109,Sierpień[[Nadgodziny    ]])","v":{"v":0,"d":"0.0"}}]
["W komórce F88 jest automatycznie obliczana suma godzin zwykłych w sierpniu, a w komórce I88 — suma nadgodzin w sierpniu. Dalsze instrukcje znajdują się w komórce A90.",{"$nulls":3},{"$f":"TEXT(DATEVALUE(Sierpień[[#Headers],[Sierpień]]&\" \"&YEAR(TODAY())),\"mmm.\")&\" suma: Zwykłe godziny pracy\"","v":"sie. suma: Zwykłe godziny pracy"},{"$f":"SUM(Sierpień[Tydzień 1],Sierpień[Tydzień 2],Sierpień[Tydzień 3],Sierpień[Tydzień 4],Sierpień[Tydzień 5])","v":{"v":0,"d":"0.0"}},{"$f":"TEXT(DATEVALUE(Sierpień[[#Headers],[Sierpień]]&\" \"&YEAR(TODAY())),\"mmm.\")&\" suma: Nadgodziny\"","v":"sie. suma: Nadgodziny"},null,{"$f":"SUM(Sierpień[Nadgodziny],Sierpień[[Nadgodziny ]],Sierpień[[Nadgodziny   ]],Sierpień[[Nadgodziny  ]],Sierpień[[Nadgodziny    ]])","v":{"v":0,"d":"0.0"}}]
[]
["W tabeli Wrzesień zaczynającej się w komórce E90 wprowadź godziny zwykłe i nadgodziny. Dalsze instrukcje znajdują się w komórce A99.",{"$nulls":3},"Wrzesień","Tydzień 1","Nadgodziny","Tydzień 2","Nadgodziny ","Tydzień 3","Nadgodziny  ","Tydzień 4","Nadgodziny   ","Tydzień 5","Nadgodziny    "]
[{"$nulls":4},"Poniedziałek"]
[{"$nulls":4},"Wtorek"]
[{"$nulls":4},"Środa"]
[{"$nulls":4},"Czwartek"]
[{"$nulls":4},"Piątek"]
[{"$nulls":4},"Sobota"]
[{"$nulls":4},"Niedziela"]
[{"$nulls":4},"Suma godzin w tygodniu",{"$f":"SUBTOTAL(109,Wrzesień[Tydzień 1])","v":{"v":0,"d":"0.0"}},{"$f":"SUBTOTAL(109,Wrzesień[Nadgodziny])","v":{"v":0,"d":"0.0"}},{"$f":"SUBTOTAL(109,Wrzesień[Tydzień 2])","v":{"v":0,"d":"0.0"}},{"$f":"SUBTOTAL(109,Wrzesień[[Nadgodziny ]])","v":{"v":0,"d":"0.0"}},{"$f":"SUBTOTAL(109,Wrzesień[Tydzień 3])","v":{"v":0,"d":"0.0"}},{"$f":"SUBTOTAL(109,Wrzesień[[Nadgodziny  ]])","v":{"v":0,"d":"0.0"}},{"$f":"SUBTOTAL(109,Wrzesień[Tydzień 4])","v":{"v":0,"d":"0.0"}},{"$f":"SUBTOTAL(109,Wrzesień[[Nadgodziny   ]])","v":{"v":0,"d":"0.0"}},{"$f":"SUBTOTAL(109,Wrzesień[Tydzień 5])","v":{"v":0,"d":"0.0"}},{"$f":"SUBTOTAL(109,Wrzesień[[Nadgodziny    ]])","v":{"v":0,"d":"0.0"}}]
["W komórce F99 jest automatycznie obliczana suma godzin zwykłych we wrześniu, a w komórce I99 — suma nadgodzin we wrześniu.",{"$nulls":3},{"$f":"TEXT(DATEVALUE(Wrzesień[[#Headers],[Wrzesień]]&\" \"&YEAR(TODAY())),\"mmm.\")&\" suma: Zwykłe godziny pracy\"","v":"wrz. suma: Zwykłe godziny pracy"},{"$f":"SUM(Wrzesień[Tydzień 1],Wrzesień[Tydzień 2],Wrzesień[Tydzień 3],Wrzesień[Tydzień 4],Wrzesień[Tydzień 5])","v":{"v":0,"d":"0.0"}},{"$f":"TEXT(DATEVALUE(Wrzesień[[#Headers],[Wrzesień]]&\" \"&YEAR(TODAY())),\"mmm.\")&\" suma: Nadgodziny\"","v":"wrz. suma: Nadgodziny"},null,{"$f":"SUM(Wrzesień[Nadgodziny],Wrzesień[[Nadgodziny ]],Wrzesień[[Nadgodziny  ]],Wrzesień[[Nadgodziny   ]],Wrzesień[[Nadgodziny    ]])","v":{"v":0,"d":"0.0"}}]
["W komórce E100 znajduje się nagłówek czwartego kwartału obejmującego październik, listopad i grudzień. ",{"$nulls":3},"Październik, listopad, grudzień      Pracownik karta godzin: dzienna, tygodniowa, miesięczna, roczna"]
["W tabeli Październik zaczynającej się w komórce E101 wprowadź godziny zwykłe i nadgodziny. Dalsze instrukcje znajdują się w komórce A110.",{"$nulls":3},"Październik","Tydzień 1","Nadgodziny","Tydzień 2","Nadgodziny ","Tydzień 3","Nadgodziny  ","Tydzień 4","Nadgodziny   ","Tydzień 5","Nadgodziny    "]
[{"$nulls":4},"Poniedziałek"]
[{"$nulls":4},"Wtorek"]
[{"$nulls":4},"Środa"]
[{"$nulls":4},"Czwartek"]
[{"$nulls":4},"Piątek"]
[{"$nulls":4},"Sobota"]
[{"$nulls":4},"Niedziela"]
[{"$nulls":4},"Suma godzin w tygodniu",{"$f":"SUBTOTAL(109,Październik[Tydzień 1])","v":{"v":0,"d":"0.0"}},{"$f":"SUBTOTAL(109,Październik[Nadgodziny])","v":{"v":0,"d":"0.0"}},{"$f":"SUBTOTAL(109,Październik[Tydzień 2])","v":{"v":0,"d":"0.0"}},{"$f":"SUBTOTAL(109,Październik[[Nadgodziny ]])","v":{"v":0,"d":"0.0"}},{"$f":"SUBTOTAL(109,Październik[Tydzień 3])","v":{"v":0,"d":"0.0"}},{"$f":"SUBTOTAL(109,Październik[[Nadgodziny  ]])","v":{"v":0,"d":"0.0"}},{"$f":"SUBTOTAL(109,Październik[Tydzień 4])","v":{"v":0,"d":"0.0"}},{"$f":"SUBTOTAL(109,Październik[[Nadgodziny   ]])","v":{"v":0,"d":"0.0"}},{"$f":"SUBTOTAL(109,Październik[Tydzień 5])","v":{"v":0,"d":"0.0"}},{"$f":"SUBTOTAL(109,Październik[[Nadgodziny    ]])","v":{"v":0,"d":"0.0"}}]
["W komórce F110 jest automatycznie obliczana suma godzin zwykłych w październiku, a w komórce I110 — suma nadgodzin w październiku. Dalsze instrukcje znajdują się w komórce A112.",{"$nulls":3},{"$f":"TEXT(DATEVALUE(Październik[[#Headers],[Październik]]&\" \"&YEAR(TODAY())),\"mmm.\")&\" suma: Zwykłe godziny pracy\"","v":"paź. suma: Zwykłe godziny pracy"},{"$f":"SUM(Październik[Tydzień 1],Październik[Tydzień 2],Październik[Tydzień 3],Październik[Tydzień 4],Październik[Tydzień 5])","v":{"v":0,"d":"0.0"}},{"$f":"TEXT(DATEVALUE(Październik[[#Headers],[Październik]]&\" \"&YEAR(TODAY())),\"mmm.\")&\" suma: Nadgodziny\"","v":"paź. suma: Nadgodziny"},null,{"$f":"SUM(Październik[Nadgodziny],Październik[[Nadgodziny ]],Październik[[Nadgodziny  ]],Październik[[Nadgodziny   ]],Październik[[Nadgodziny    ]])","v":{"v":0,"d":"0.0"}}]
[]
["W tabeli Listopad zaczynającej się w komórce E112 wprowadź godziny zwykłe i nadgodziny. Dalsze instrukcje znajdują się w komórce A121.",{"$nulls":3},"Listopad","Tydzień 1","Nadgodziny","Tydzień 2","Nadgodziny ","Tydzień 3","Nadgodziny  ","Tydzień 4","Nadgodziny    ","Tydzień 5","Nadgodziny     "]
[{"$nulls":4},"Poniedziałek"]
[{"$nulls":4},"Wtorek"]
[{"$nulls":4},"Środa"]
[{"$nulls":4},"Czwartek"]
[{"$nulls":4},"Piątek"]
[{"$nulls":4},"Sobota"]
[{"$nulls":4},"Niedziela"]
[{"$nulls":4},"Suma godzin w tygodniu",{"$f":"SUBTOTAL(109,Listopad[Tydzień 1])","v":{"v":0,"d":"0.0"}},{"$f":"SUBTOTAL(109,Listopad[Nadgodziny])","v":{"v":0,"d":"0.0"}},{"$f":"SUBTOTAL(109,Listopad[Tydzień 2])","v":{"v":0,"d":"0.0"}},{"$f":"SUBTOTAL(109,Listopad[[Nadgodziny ]])","v":{"v":0,"d":"0.0"}},{"$f":"SUBTOTAL(109,Listopad[Tydzień 3])","v":{"v":0,"d":"0.0"}},{"$f":"SUBTOTAL(109,Listopad[[Nadgodziny  ]])","v":{"v":0,"d":"0.0"}},{"$f":"SUBTOTAL(109,Listopad[Tydzień 4])","v":{"v":0,"d":"0.0"}},{"$f":"SUBTOTAL(109,Listopad[[Nadgodziny    ]])","v":{"v":0,"d":"0.0"}},{"$f":"SUBTOTAL(109,Listopad[Tydzień 5])","v":{"v":0,"d":"0.0"}},{"$f":"SUBTOTAL(109,Listopad[[Nadgodziny     ]])","v":{"v":0,"d":"0.0"}}]
["W komórce F121 jest automatycznie obliczana suma godzin zwykłych w listopadzie, a w komórce I121 — suma nadgodzin w listopadzie. Dalsze instrukcje znajdują się w komórce A123.",{"$nulls":3},{"$f":"TEXT(DATEVALUE(Listopad[[#Headers],[Listopad]]&\" \"&YEAR(TODAY())),\"mmm.\")&\" suma: Zwykłe godziny pracy\"","v":"lis. suma: Zwykłe godziny pracy"},{"$f":"SUM(Listopad[Tydzień 1],Listopad[Tydzień 2],Listopad[Tydzień 3],Listopad[Tydzień 4],Listopad[Tydzień 5])","v":{"v":0,"d":"0.0"}},{"$f":"TEXT(DATEVALUE(Listopad[[#Headers],[Listopad]]&\" \"&YEAR(TODAY())),\"mmm.\")&\" suma: Nadgodziny\"","v":"lis. suma: Nadgodziny"},null,{"$f":"SUM(Listopad[Nadgodziny],Listopad[[Nadgodziny ]],Listopad[[Nadgodziny  ]],Listopad[[Nadgodziny    ]],Listopad[[Nadgodziny     ]])","v":{"v":0,"d":"0.0"}}]
[]
["W tabeli Grudzień zaczynającej się w komórce E123 wprowadź godziny zwykłe i nadgodziny. Dalsze instrukcje znajdują się w komórce A132.",{"$nulls":3},"Grudzień","Tydzień 1","Nadgodziny","Tydzień 2","Nadgodziny ","Tydzień 3","Nadgodziny  ","Tydzień 4","Nadgodziny   ","Tydzień 5","Nadgodziny    "]
[{"$nulls":4},"Poniedziałek"]
[{"$nulls":4},"Wtorek"]
[{"$nulls":4},"Środa"]
[{"$nulls":4},"Czwartek"]
[{"$nulls":4},"Piątek"]
[{"$nulls":4},"Sobota"]
[{"$nulls":4},"Niedziela"]
[{"$nulls":4},"Suma godzin w tygodniu",{"$f":"SUBTOTAL(109,Grudzień[Tydzień 1])","v":{"v":0,"d":"0.0"}},{"$f":"SUBTOTAL(109,Grudzień[Nadgodziny])","v":{"v":0,"d":"0.0"}},{"$f":"SUBTOTAL(109,Grudzień[Tydzień 2])","v":{"v":0,"d":"0.0"}},{"$f":"SUBTOTAL(109,Grudzień[[Nadgodziny ]])","v":{"v":0,"d":"0.0"}},{"$f":"SUBTOTAL(109,Grudzień[Tydzień 3])","v":{"v":0,"d":"0.0"}},{"$f":"SUBTOTAL(109,Grudzień[[Nadgodziny  ]])","v":{"v":0,"d":"0.0"}},{"$f":"SUBTOTAL(109,Grudzień[Tydzień 4])","v":{"v":0,"d":"0.0"}},{"$f":"SUBTOTAL(109,Grudzień[[Nadgodziny   ]])","v":{"v":0,"d":"0.0"}},{"$f":"SUBTOTAL(109,Grudzień[Tydzień 5])","v":{"v":0,"d":"0.0"}},{"$f":"SUBTOTAL(109,Grudzień[[Nadgodziny    ]])","v":{"v":0,"d":"0.0"}}]
["W komórce F132 jest automatycznie obliczana suma godzin zwykłych w grudniu, a w komórce I132 — suma nadgodzin w grudniu.",{"$nulls":3},{"$f":"TEXT(DATEVALUE(Grudzień[[#Headers],[Grudzień]]&\" \"&YEAR(TODAY())),\"mmm.\")&\" suma: Zwykłe godziny pracy\"","v":"gru. suma: Zwykłe godziny pracy"},{"$f":"SUM(Grudzień[Tydzień 1],Grudzień[Tydzień 2],Grudzień[Tydzień 3],Grudzień[Tydzień 4],Grudzień[Tydzień 5])","v":{"v":0,"d":"0.0"}},{"$f":"TEXT(DATEVALUE(Grudzień[[#Headers],[Grudzień]]&\" \"&YEAR(TODAY())),\"mmm.\")&\" suma: Nadgodziny\"","v":"gru. suma: Nadgodziny"},null,{"$f":"SUM(G124:G130,I124:I130,K124:K130,M124:M130,O124:O130)","v":{"v":0,"d":"0.0"}}]